Cogmind - Beta 17 @@@ ROGUE MODE // 2026.07.17 @ 21:43:54 Player: Skysub Result: Destroyed by G4-LA0(R) with Subdweller Machine Gun Performance ------------- Evolutions (0) 0 Regions Visited (2) 400 Robots Destroyed (25) 125 Value Destroyed (593) 593 Prototype IDs (1) 20 Alien Tech Used (0) 0 Bonus (5050) 5050 TOTAL SCORE: 6188 Bonus ------- Prayed to X0-1V1 5000 Major X0-1V1 Interference 50 Cogmind --------- Core Integrity 0/250 Matter 133/150 Energy 200/200 System Corruption 3% Temperature Cool (0) Movement Rolling (140) Ox4 Location -10/Subcaves Parts ------- > --- POWER (1) -------- Subdweller Power Source > --- PROPULSION (2) --- Light Treads Wheel > --- UTILITY (2) ------ High-capacity Storage Unit X0-1V1's Piety Tracker > --- WEAPON (2) ------- Light Assault Rifle Hammer > --- INVENTORY (20) --- Subdweller Power Source Subdweller Power Source Light Treads Light Treads Wheel Wheel Improved Heat Sink Small Storage Unit Structural Scanner Small Laser Subdweller Laser Light Assault Rifle Light Assault Rifle Light Assault Rifle Subdweller Machine Gun Grenade Launcher Dirty Datajack (20) Peak State ------------ > --- POWER ------------ Light Nuclear Core > --- PROPULSION ------- Light Treads Wheel > --- UTILITY ---------- High-capacity Storage Unit X0-1V1's Piety Tracker > --- WEAPON ----------- Light Assault Rifle Light Assault Rifle > --- INVENTORY -------- Subdweller Power Source Subdweller Power Source Subdweller Power Source Light Treads Light Treads Wheel Wheel Improved Heat Sink Small Storage Unit Structural Scanner Small Laser Subdweller Laser Light Assault Rifle Light Assault Rifle Subdweller Machine Gun Grenade Launcher Dirty Datajack Hammer [Rating: 24] Favorites ----------- Power Light Nuclear Core Engine Ion Engine Power Core Light Nuclear Core Propulsion Wheel Treads Light Treads Wheel Wheel Utility High-capacity Storage Unit Device X0-1V1's Piety Tracker Storage High-capacity Storage Unit Weapon Assault Rifle Energy Gun Small Laser Ballistic Gun Assault Rifle Launcher Grenade Launcher Impact Weapon Hammer Build | -11 -10 -10 ------- Run | Yrd Mat Sub Slots Evolved . | . . . Power . | . . . Propulsion . | . . . Utility . | . . . Weapon . | . . . Parts Attached 17 | 7 5 5 Power 3 | 1 1 1 Engine 2 | 1 . 1 Core 1 | . 1 . Reactor . | . . . Propulsion 4 | 2 . 2 Treads 2 | 1 . 1 Leg . | . . . Wheel 2 | 1 . 1 Hover . | . . . Flight . | . . . Utility 3 | 1 2 . Device 1 | . 1 . Storage 2 | 1 1 . Processor . | . . . Hackware . | . . . Protection . | . . . Artifact . | . . . Weapon 7 | 3 2 2 Energy Gun 1 | 1 . . Energy Cannon . | . . . Ballistic Gun 4 | 2 . 2 Ballistic Cannon . | . . . Launcher 1 | . 1 . Special Weapon . | . . . Impact Weapon 1 | . 1 . Slashing Weapon . | . . . Piercing Weapon . | . . . Special Melee Weapon . | . . . Unidentified Prototypes 1 | . 1 . Parts Lost 4 | . . 4 Power 1 | . . 1 Propulsion 1 | . . 1 Utility . | . . . Weapon 2 | . . 2 Highest Loss Streak 3 | . . 3 To Critical Strikes . | . . . Average Backups 10 | 1 9 15 Power . | . . 1 Propulsion 3 | . 3 4 Utility 1 | . 1 3 Weapon 4 | . 4 6 Tool/Special . | . . . Unused Backups 11 | . 1 10 Power 2 | . . 2 Propulsion 2 | . . 2 Utility 1 | . . 1 Weapon 5 | . 1 4 Tool/Special 1 | . . 1 Average Slot Usage (%) 88 | . 86 99 Engine 4 | . 5 2 Core 8 | . 8 11 Treads 14 | . 14 14 Wheel 14 | . 14 14 Device 3 | . 1 14 Storage 14 | . 14 14 Ballistic Gun 23 | . 24 20 Impact Weapon 4 | . 3 7 Peak Build Rating 24 | 6 22 24 Average Rating 11 | 4 8 22 On Entrance 9 | . 6 22 Avg Prop Armor Cover (%) 11 | 8 11 13 Naked Turns . | . . . Heaviest Build 50 | 14 50 50 Greatest Support 20 | 20 10 10 Greatest Overweight (x) 4 | 1 4 4 Average Overweight (x) 3 | . 3 4 Largest Inventory Capacity 20 | 8 20 20 Average Capacity 19 | 7 19 20 Most Carried 18 | 3 14 18 Average Carried 10 | 1 9 15 Final Capacity 20 | 8 20 20 Final Carried 17 | 3 14 17 Class Distribution -------------------- 100% | Mutant Dominant Class ---------------- Mutant | -10/Materials Mutant | -10/Subcaves Resources | -11 -10 -10 ----------- Run | Yrd Mat Sub Matter Collected 751 | 127 588 36 Remotely . | . . . Salvage Created 748 | . 641 107 Parts 57 | . 48 9 Haulers Intercepted 1 | . 1 . Recyclers Shooed 1 | . 1 . Parts Field Recycled . | . . . Retrieved Matter . | . . . Parts Self-Destructed . | . . . Prevented . | . . . Parts Restored . | . . . Kills | -11 -10 -10 ------- Run | Yrd Mat Sub Combat Hostiles Destroyed 16 | . 12 4 Melee 1 | . . 1 Guns 8 | . 7 1 AOE 7 | . 5 2 Classes Destroyed 10 | . 9 1 Worker 1 | . 1 . Builder 2 | . 2 . Tunneler 1 | . 1 . Hauler 1 | . 1 . Recycler 1 | . 1 . Mechanic 1 | . 1 . Watcher 2 | . 2 . Swarmer 3 | . 3 . Grunt 9 | . 9 . Subdweller 4 | . . 4 Best Kill Streak 4 | . 4 2 Combat Bots Only 3 | . 3 2 Max Kills in Single Turn 2 | . 2 2 Gunslinging . | . . . Exploded 2 | . 2 2 Melee 1 | . . 1 Uniques/NPCs Destroyed . | . . . Combat | -11 -10 -10 -------- Run | Yrd Mat Sub Hostile Shots Fired 90 | . 64 26 Missed 31 | . 23 8 Hits 59 | . 41 18 Projectile 59 | . 41 18 Critical Strikes 3 | . 1 2 Damage Taken 963 | . 521 442 Core 253 | . 149 104 Absorbed by Shields . | . . . Core Remaining (%) 100 | 100 . . Volleys Fired 68 | . 60 8 Largest 2 | . 2 2 Hottest 50 | . 50 40 Shots Fired 131 | . 118 13 Gun 125 | . 114 11 Cannon . | . . . Launcher 6 | . 4 2 Special . | . . . Kinetic 125 | . 114 11 Thermal . | . . . Explosive 6 | . 4 2 Electromagnetic . | . . . Robot Hit Streak 7 | . 7 7 Robot Miss Streak 3 | . 3 1 Penetration Max . | . . . Secondary Targets 1 | . 1 . Max Gunslinging Chain 1 | . 1 . Shots Hit Robots 97 | . 77 20 Core Hits 44 | . 36 8 Critical Kills . | . . . Critical Parts Destroyed . | . . . Critical Strikes 2 | . . 2 Smash 2 | . . 2 Melee Attacks 35 | . 24 11 Impact 35 | . 24 11 Slashing . | . . . Piercing . | . . . Sneak Attacks 1 | . 1 . Combat Hostiles . | . . . Follow-up Attacks . | . . . Damage Inflicted 1773 | . 1305 468 Guns 1014 | . 950 64 Cannons . | . . . Explosions 462 | . 306 156 Melee 297 | . 49 248 Ramming . | . . . Kinetic 1014 | . 950 64 Thermal . | . . . Explosive 462 | . 306 156 Electromagnetic . | . . . Impact 297 | . 49 248 Slashing . | . . . Piercing . | . . . Highest Corruption 3 | . 3 3 Average Corruption 2 | . 2 3 Corruption Purged . | . . . Corruption Blocked . | . . . Effects 12 | . 8 4 Message Errors 4 | . 2 2 Matter Fused 1 | . 1 . Heat Flow Errors 1 | . . 1 Energy Discharges 1 | . 1 . Data Loss (minor) 3 | . 2 1 Misfires 1 | . 1 . Weapon Failures 1 | . 1 . Overload Shots . | . . . Overflow Damage 19 | . 9 10 Projectiles . | . . . Explosions 2 | . . 2 Melee 17 | . 9 8 Knockbacks 1 | . . 1 Impact 1 | . . 1 Kinetic . | . . . Secondary . | . . . Self-Inflicted Damage 37 | . . 37 Shots 2 | . . 2 Rammed . | . . . Targets Rammed . | . . . Kicked . | . . . Crushed . | . . . Highest Temperature 231 | . 20 231 Average Temperature 32 | . 5 117 Received Heat Transfer 315 | . 279 36 Siege Activations . | . . . Martial Activations . | . . . Shielding Activations . | . . . Robots Disrupted . | . . . Combat Hostiles . | . . . Robots Corrupted 1 | . 1 . Combat Hostiles . | . . . Parts Fried 1 | . 1 . Impact Corruptions 2 | . 1 1 Robots Melted . | . . . Combat Hostiles . | . . . Parts Melted . | . . . Heat Transferred . | . . . Parts Sabotaged . | . . . Parts Stolen . | . . . Parts Stripped . | . . . Power Chain Reactions . | . . . Alert | -11 -10 -10 ------- Run | Yrd Mat Sub Maximum Alert Level . | . . . Low Security (%) 100 | 100 100 . Level 1 . | . . . Level 2 . | . . . Level 3 . | . . . Level 4 . | . . . Level 5 . | . . . High Security . | . . . Max Security . | . . . Peak Influence 163 | . 163 . Initial . | . . . Average 65 | . 69 . Influence Increases 399 | . 399 . Destroy 0b10 Robot/C 240 | . 240 . Destroy 0b10 Robot/NC 45 | . 45 . Destroy Leader 66 | . 66 . Successful Hack 15 | . 15 . Destroy Structure 18 | . 18 . Lose Combat Pursuer 15 | . 15 . Influence Decreases 399 | . 399 . Time Decay 399 | . 399 . Squads Dispatched 3 | . 3 . Investigation 2 | . 2 . Extermination . | . . . Reinforcement 1 | . 1 . Assault . | . . . Garrison . | . . . Intercept . | . . . Searches Triggered . | . . . Construction Impeded . | . . . Haulers Reinforced . | . . . Active Scanning Responses . | . . . Cargo Convoy Interrupts . | . . . Stealth | -11 -10 -10 --------- Run | Yrd Mat Sub Distress Signals 2 | . 2 . Communications Jammed . | . . . Distress Signals . | . . . Times Spotted 27 | . 22 5 Peak Tracking Total 4 | . 4 2 Tactical Retreats 1 | . 1 . Traps | -11 -10 -10 ------- Run | Yrd Mat Sub Traps Triggered 4 | . 4 . Indirectly . | . . . Trap Hack Attempts . | . . . Triggered . | . . . Disarmed . | . . . Reprogrammed . | . . . Reused . | . . . Traps Extracted . | . . . Installed . | . . . Triggered . | . . . Machines | -11 -10 -10 ---------- Run | Yrd Mat Sub Machines Disabled . | . . . Max in Single Turn . | . . . Machines Repaired . | . . . Machines Dismantled . | . . . Machines Sabotaged . | . . . Overloaded Fab Kills . | . . . Hacking | -11 -10 -10 --------- Run | Yrd Mat Sub Machines Accessed 7 | . 7 . Terminals 6 | . 6 . Fabricators . | . . . Repair Stations . | . . . Recycling Units 1 | . 1 . Scanalyzers . | . . . Garrison Access . | . . . Total Hacks 22 | . 22 . Successful 11 | . 11 . Failed 10 | . 10 . Catastrophic . | . . . Database Lockouts 1 | . 1 . Manual 24 | . 24 . Terminals 18 | . 18 . Fabricators . | . . . Repair Stations . | . . . Recycling Units 4 | . 4 . Scanalyzers . | . . . Garrison Access . | . . . Terminal Hacks 2 | . 2 . Robot Analysis 1 | . 1 . Terminal Index 1 | . 1 . Fabricator Hacks . | . . . Repair Station Hacks . | . . . Recycling Unit Hacks 1 | . 1 . Report Inventory 1 | . 1 . Scanalyzer . | . . . Garrison Access Hacks . | . . . Unauthorized Hacks 8 | . 8 . Terminals 8 | . 8 . Botnet 2 | . 2 . Skim 6 | . 6 . Fabricators . | . . . Repair Stations . | . . . Recycling Units . | . . . Scanalyzers . | . . . Garrison Access . | . . . Data Cores Recovered . | . . . Used . | . . . Hacking Detections 5 | . 5 . Full Trace Events 1 | . 1 . Feedback Events . | . . . Feedback Blocked . | . . . Robot Schematics Acquired . | . . . Robots Built . | . . . Authchips . | . . . Time . | . . . Total Robot Build Rating . | . . . Part Schematics Acquired . | . . . Parts Built . | . . . Authchips . | . . . Time . | . . . Total Part Build Rating . | . . . Part Studies Acquired . | . . . Parts Repaired . | . . . Time . | . . . Parts Recycled . | . . . Recycled Matter . | . . . Retrieved Matter . | . . . Retrieved Components . | . . . Parts Scanalyzed . | . . . Part Schematics Acquired . | . . . Parts Damaged . | . . . Bothacking | -11 -10 -10 ------------ Run | Yrd Mat Sub Used RIF Installer . | . . . Robots Hacked . | . . . Non-combat . | . . . Combat . | . . . Robot Hacks Applied . | . . . Relay Couplers Released . | . . . Fabnet Peak Effective % . | . . . Robots Rewired . | . . . Allies Hacked . | . . . Hacks Repelled . | . . . Allies | -11 -10 -10 -------- Run | Yrd Mat Sub Total Allies . | . . . Largest Group . | . . . Highest-Rated Group . | . . . Highest-Rated Ally . | . . . Total Orders . | . . . Ally Attacks . | . . . Total Damage . | . . . Kills . | . . . Allies Corrupted . | . . . Allies Melted . | . . . X0-1V1 Amusement Gains 13 | . 13 . Bad Acts 2 | . . 2 Intel | -11 -10 -10 ------- Run | Yrd Mat Sub Active Infowar (turns) . | . . . Robot Analysis Total 1 | . 1 . Derelict Logs Recovered . | . . . Drone Launches . | . . . Drone Recoveries . | . . . Exploration | -11 -10 -10 ------------- Run | Yrd Mat Sub Turns Passed 1363 | 57 1066 240 Spaces Moved 683 | 44 519 120 Core 3 | 3 . . Treads 6 | 6 . . Legs . | . . . Wheels 674 | 35 519 120 Hover . | . . . Flight . | . . . Fastest Speed 50 | 50 95 140 Average Speed 135 | 99 137 140 Slowest Speed 160 | 160 140 140 Overloaded Moves . | . . . Propulsion Burnouts . | . . . Robots Hopped . | . . . Potential Cave-ins . | . . . Cave-ins Triggered . | . . . Exploration Rate (%) 33 | 3 85 12 Regions Visited 2 Branch Regions 1 Pre-discovered Areas 1 | . 1 . Known Exits Taken 1 | . 1 . Unknown Exits Taken 1 | 1 . . Scrap Searched . | . . . Spaces Dug 2 | . 2 . Terrain Destroyed 33 | . 22 11 Melee 2 | . 2 . Projectile . | . . . AOE 31 | . 20 11 Terrain Rammed . | . . . Walls Destroyed . | . . . Machines Disabled . | . . . Actions | -11 -10 -10 --------- Run | Yrd Mat Sub Total 921 | 53 708 160 Wait 88 | . 84 4 Move 681 | 43 518 120 Hop . | . . . Pick Up 21 | 3 11 7 Fast Attach 8 | 6 2 . Attach 4 | . . 4 Detach 1 | . 1 . Swap 14 | 1 7 6 Drop 1 | . 1 . Fire 68 | . 60 8 Melee 35 | . 24 11 Ram . | . . . Kick . | . . . Crush . | . . . Escape Stasis . | . . . Rewire . | . . . Trap . | . . . Miscellaneous . | . . . Route ------- -11/Scrapyard -10/Materials (discovered 5 exits: *Mat x3 / [*Min] / *Sub) -10/Subcaves (discovered 4 exits: *Mat x2 / Rec / [*Scr]) History --------- Turn | Location | Event 36 | -11/Scrapyard | Discovered new exit (range 15) 58 | -11/Scrapyard | Entered Materials 148 | -10/Materials | Central database locked down 227 | -10/Materials | Discovered new exit (range 5) 307 | -10/Materials | Build established: Mutant 412 | -10/Materials | Core integrity fell below 50% 451 | -10/Materials | Discovered new exit (range 15) 610 | -10/Materials | Learned 4 Subcaves zone layouts 682 | -10/Materials | Learned location of Subcaves (-10) 721 | -10/Materials | Discovered new exit (range 16) 742 | -10/Materials | Learned Storage trap positions 792 | -10/Materials | Identified exit to Materials 832 | -10/Materials | Learned location of 1 exit from Recycling 861 | -10/Materials | Learned Storage trap positions 878 | -10/Materials | Learned location of 2 exits from Mines 904 | -10/Materials | Identified exit to Subcaves 904 | -10/Materials | Learned location of 1 exit from Materials 939 | -10/Materials | Learned location of 1 exit from Recycling 985 | -10/Materials | Loaded intel: 13 trap records 1035 | -10/Materials | Prayed at D.C.S.S. Altar Unit 1042 | -10/Materials | Learned Recycling recycling unit intel 1124 | -10/Materials | Entered Subcaves 1125 | -10/Subcaves | Approached by a straggling Scientist 1125 | -10/Subcaves | Identified exit to Materials 1126 | -10/Subcaves | Identified exit to Recycling 1132 | -10/Subcaves | Shifting Twisted Machinery released Shrapnel Trap 1138 | -10/Subcaves | Shifting Twisted Machinery released Sub. Power Source 1194 | -10/Subcaves | Scientist uncovered a shortcut to Scraptown 1267 | -10/Subcaves | Lost 3 parts (1n2w) 1296 | -10/Subcaves | Discovered exit to Materials (range 10) 1305 | -10/Subcaves | Core integrity fell below 20% 1351 | -10/Subcaves | Ambushed by Subdweller buried in earth 1364 | -10/Subcaves | Destroyed by G4-LA0(R) with Subdweller Machine Gun Last Messages --------------- 01256_ Acquired Sub. Machine Gun. 01263_ Acquired Sub. Power Source. 01269_ Acquired Sub. Laser. 01270_ Acquired 36 matter. 01272_ System corrupted: Component data lost. 01278_ The unstable cave ceiling collapses. 01295_ %0 3UW%ODFX, 4BUK2C2